fUSD/lending_fUSD_20260221
["ID","MTS","AMOUNT","RATE_DAILY","PERIOD"]
[406296810,1771699843280,-151.0,0.000264,2]
[406296811,1771699843290,-151.0,0.000264,2]
[406296812,1771699843299,-251.685089,0.000264,2]
[406296813,1771699843308,-151.0,0.000264,2]
[406296814,1771699843318,-151.0,0.000264,2]
[406296815,1771699843327,-151.0,0.000264,2]
[406296816,1771699843337,-510.0,0.00026667,11]
[406296817,1771699843346,-426.745295,0.00026951,2]
[406296818,1771699843355,-426.745295,0.00026951,2]
[406296819,1771699843364,-426.745295,0.00026951,2]
[406296820,1771699843373,-426.745295,0.00026951,2]
[406296821,1771699843383,-680.208125,0.00026951,2]
[406296822,1771699843391,-680.208125,0.00026951,2]
[406296823,1771699843401,-325.537551,0.00026951,2]
[406296824,1771699843410,-680.208125,0.00026951,2]
[406296825,1771699843419,-325.537551,0.00026951,2]
[406296826,1771699843428,-680.208125,0.00026951,2]
[406296827,1771699843437,-325.537551,0.00026951,2]
[406296828,1771699843447,-325.537551,0.00026951,2]
[406296829,1771699843456,-833.92535153,0.00026951,2]
[406296830,1771699843465,-250.0,0.00027,2]
[406296831,1771699843475,-1036.96878042,0.00027,2]
[406296832,1771699843485,-530.0,0.00027,2]
[406296833,1771699843494,-173.74378417,0.00027,3]
[406296834,1771699843504,-550.0,0.00027,2]
[406296835,1771699843513,-151.0,0.00027,2]
[406296836,1771699843674,-151.0,0.00027,2]
[406296837,1771699843698,-151.0,0.00027123,2]
[406296838,1771699843707,-151.0,0.00027123,2]
[406296839,1771699843716,-370.744883,0.00027123,2]
[406296840,1771699843725,-370.744883,0.00027123,2]
[406296841,1771699843735,-370.744883,0.00027123,2]
[406296842,1771699843743,-151.0,0.00027123,2]
[406296843,1771699843753,-370.744883,0.00027123,2]
[406296844,1771699843762,-151.0,0.00027123,2]
[406296845,1771699843771,-151.0,0.00027123,2]
[406296846,1771699843780,-496.794936,0.00027123,2]
[406296847,1771699843789,-496.794936,0.00027123,2]
[406296848,1771699843798,-496.794936,0.00027123,2]
[406296849,1771699843807,-496.794936,0.00027123,2]
[406296850,1771699843818,-151.0,0.00027123,2]
[406296851,1771699843827,-151.0,0.00027123,2]
[406296852,1771699843836,-151.0,0.00027123,2]
[406296853,1771699843845,-151.0,0.00027123,2]
[406296854,1771699843854,-3697.2,0.00027123,2]
[406296855,1771699843863,-150.0,0.00027369,2]
[406296856,1771699843873,-4121.26232887,0.0002739,2]
[406296857,1771699843881,-8142.60566174,0.0002739,2]
[406296858,1771699843891,-151.0,0.0002739,2]
[406296859,1771699843900,-151.0,0.0002739,2]
[406296860,1771699843909,-151.0,0.0002739,2]
[406296861,1771699843918,-151.0,0.0002739,2]
[406296862,1771699843927,-151.0,0.0002739,2]
[406296863,1771699843937,-1000.0,0.00027397,20]
[406296864,1771699843946,-1229.63,0.00027397,2]
[406296865,1771699843956,-520.81,0.00027397,2]
[406296866,1771699843965,-151.0,0.00027397,2]
[406296867,1771699843974,-151.0,0.00027397,2]
[406296868,1771699843983,-151.0,0.00027397,2]
[406296869,1771699843993,-151.0,0.00027397,2]
[406296870,1771699844002,-232.67043,0.00027397,2]
[406296871,1771699844010,-232.67043,0.00027397,2]
[406296872,1771699844019,-232.67043,0.00027397,2]
[406296873,1771699844028,-232.67043,0.00027397,2]
[406296874,1771699844037,-232.67043,0.00027397,2]
[406296875,1771699844047,-232.67043,0.00027397,2]
[406296876,1771699844056,-232.67043,0.00027397,2]
[406296877,1771699844066,-232.67043,0.00027397,2]
[406296878,1771699844076,-878.677105,0.00027397,2]
[406296879,1771699844085,-878.677105,0.00027397,2]
[406296880,1771699844094,-878.677105,0.00027397,2]
[406296881,1771699844103,-878.677105,0.00027397,2]
[406296882,1771699844112,-878.677105,0.00027397,2]
[406296883,1771699844121,-878.677105,0.00027397,2]
[406296884,1771699844131,-878.677105,0.00027397,2]
[406296885,1771699844140,-878.677105,0.00027397,2]
[406296886,1771699844149,-300.0,0.00027397,2]
[406296887,1771699844160,-201.78613735,0.000275,2]
[406296888,1771699844170,-551.23383659,0.000275,2]
[406296889,1771699844180,-2000.0,0.000275,2]
[406296890,1771699844189,-298.31,0.00027571,2]
[406296891,1771699844198,-51004.6920076,0.00028,2]
[406296892,1771699844207,-160.0,0.00028,2]
[406296893,1771699844216,-8845.820213,0.00028209,30]
[406296894,1771699844225,-222.15,0.00028525,30]
[406296895,1771699844234,-495.66285401,0.00028767,2]
[406296896,1771699844244,-503.80559011,0.00029,2]
[406296897,1771699844253,-2000.0,0.00029,2]
[406296898,1771699844263,-173.74378417,0.00029,30]
[406296899,1771699844275,-206.0,0.00029024,120]
[406296900,1771699844284,-3114.55979485,0.00029184,2]
[406296901,1771699844294,-5040.66335762,0.00029184,2]
[406296902,1771699844303,-232.71017713,0.00029228,2]
[406296903,1771699844312,-356.99329701,0.0002969,2]
[406296904,1771699844322,-167.45,0.00029699,30]
[406296905,1771699844331,-79162.61569154,0.000299,2]
[406296906,1771699844340,-238.0734173,0.0002999,2]
[406296907,1771699844349,-19939.08367509,0.0003,2]
[406296908,1771699844358,-320.44975068,0.0003,2]
[406296909,1771699844368,-1824.22976787,0.0003,2]
[406296910,1771699844377,-163.62118175,0.0003,2]
[406296911,1771699844386,-1077.62248089,0.0003013,2]
[406296912,1771699844395,-13902.56556219,0.0003013,2]
[406296913,1771699844404,-636.39368784,0.0003013,2]
[406296914,1771699844413,-202.45269075,0.0003013,2]
[406296915,1771699844422,-7759.88290695,0.0003013,2]
[406296916,1771699844431,-1229.63,0.00030137,2]
[406296917,1771699844440,-2000.0,0.00030137,2]
[406296918,1771699844449,-15593.05946708,0.000302,2]
[406296919,1771699844458,-160.94,0.00030411,120]
[406296920,1771699844467,-613.72084174,0.00030629,2]
[406296921,1771699844476,-2000.0,0.00030685,2]
[406296922,1771699844485,-1614.76368904,0.0003084,2]
[406296923,1771699844495,-79305.16257805,0.0003095,2]
[406296924,1771699844504,-51751.13468422,0.00031,2]
[406296925,1771699844513,-160.0,0.00031,7]
[406296926,1771699844522,-309.0,0.000312,2]
[406296927,1771699844531,-431.0,0.000312,2]
[406296928,1771699844541,-303.0,0.000312,2]
[406296929,1771699844550,-989.0,0.000312,2]
[406296930,1771699844559,-2000.0,0.00031233,2]
[406296931,1771699844568,-198.06885736,0.000315,2]
[406296932,1771699844577,-150.0,0.000315,2]
[406296933,1771699844586,-2000.0,0.00031781,2]
[406296934,1771699844595,-510.0,0.00032,16]
[406296935,1771699844604,-897.50936371,0.000323,2]
[406296936,1771699844613,-2000.0,0.00032329,2]
[406296937,1771699844623,-155.0,0.00032398,2]
[406296938,1771699844632,-222.15,0.00032554,30]
[406296939,1771699844642,-252.7,0.00032604,2]
[406296940,1771699844651,-293.32,0.00032666,2]
[406296941,1771699844660,-2000.0,0.000327,2]
[406296942,1771699844669,-604.0,0.00032728,2]
[406296943,1771699844678,-150.0,0.00032728,2]
[406296944,1771699844688,-150.0,0.00032728,2]
[406296945,1771699844698,-162.0,0.00032728,2]
[406296946,1771699844707,-4848.7850096,0.000328,2]
[406296947,1771699844716,-1229.63,0.00032877,2]
[406296948,1771699844725,-346.03,0.00032877,2]
[406296949,1771699844735,-500.0,0.00032877,2]
[406296950,1771699844744,-500.0,0.00032877,2]
[406296951,1771699844753,-500.0,0.00032877,2]
[406296952,1771699844763,-500.0,0.00032877,2]
[406296953,1771699844771,-500.0,0.00032877,2]
[406296954,1771699844780,-500.0,0.00032877,2]
[406296955,1771699844790,-372.10875522,0.00032877,2]
[406296956,1771699844799,-2000.0,0.00032877,2]
[406296957,1771699844808,-154.64,0.000329,14]
[406296958,1771699844818,-7340.74,0.000329,14]
[406296959,1771699844827,-51495.18453571,0.00033,2]
[406296960,1771699844836,-26479.91670571,0.00033,2]
[406296961,1771699844845,-154.1700687,0.00033,2]
[406296962,1771699844855,-198.88,0.00033073,2]
[406296963,1771699844864,-2023.95858652,0.00033425,2]
[406296964,1771699844872,-1216.12967028,0.000335,2]
[406296965,1771699844881,-167.45,0.00033549,30]
[406296966,1771699844891,-500.0,0.00033741,120]
[406296967,1771699844900,-198.88,0.00033748,2]
[406296968,1771699844910,-1175.519,0.00033799,2]
[406296969,1771699844919,-3493.0,0.00033799,2]
[406296970,1771699844927,-618.0,0.00033799,2]
[406296971,1771699844936,-1341.839,0.00033799,2]
[406296972,1771699844946,-1209.0,0.00033799,2]
[406296973,1771699844955,-1276.0,0.00033799,2]
[406296974,1771699844964,-5976.0,0.00033799,2]
[406296975,1771699844973,-2453.0,0.00033799,2]
[406296976,1771699844982,-413.0,0.00033799,2]
[406296977,1771699844991,-226.57118396,0.00033939,60]
[406296978,1771699845007,-173.628,0.00034008,2]
[406296979,1771699845021,-150.135,0.00034008,2]
[406296980,1771699845035,-150.153,0.00034008,2]
[406296981,1771699845046,-150.068,0.00034008,2]
[406296982,1771699845056,-267.735,0.00034008,2]
[406296983,1771699845069,-991.1,0.000341,2]
[406296984,1771699845082,-198.88,0.00034422,2]
[406296985,1771699845094,-232.71017713,0.0003448,2]
[406296986,1771699845106,-1738.06005729,0.0003449,2]
[406296987,1771699845119,-1500.0,0.00034795,2]
[406296988,1771699845131,-7340.74,0.000349,14]
[406296989,1771699845144,-613.72084174,0.00034944,2]
[406296990,1771699845155,-1924.82628087,0.00035,2]
[406296991,1771699845166,-802.89715971,0.00035,2]
[406296992,1771699845177,-1000.0,0.00035097,2]
[406296993,1771699845189,-1000.0,0.00035097,2]
[406296994,1771699845201,-1000.0,0.00035097,2]
[406296995,1771699845213,-1000.0,0.00035097,2]
[406296996,1771699845225,-1000.0,0.00035097,2]
[406296997,1771699845238,-171.95740676,0.00035196,2]
[406296998,1771699845251,-154.64,0.000354,14]
[406296999,1771699845263,-233.95598063,0.00035589,120]
[406297001,1771699845279,-151.0,0.00035607,14]
[406297002,1771699845291,-168493.19573262,0.0003561,2]
[406297003,1771699845304,-4448.78731772,0.0003561,2]
[406297004,1771699845316,-5000.0,0.0003561,2]
[406297006,1771699845328,-361.20991187,0.00035616,7]
[406297007,1771699845339,-1229.63,0.00035616,2]
[406297008,1771699845353,-151.0,0.00035616,31]
[406297009,1771699845364,-151.0,0.00035616,31]
[406297010,1771699845377,-150.0,0.0003569,120]
[406297011,1771699845391,-235529.08794802,0.00036,2]
[406297012,1771699845403,-200.0,0.00036,30]
[406297013,1771699845416,-151.0,0.00036,31]
[406297014,1771699845428,-151.0,0.00036,31]
[406297015,1771699845439,-151.0,0.00036,31]
[406297016,1771699845450,-151.0,0.00036,31]
[406297017,1771699845461,-151.0,0.00036,31]
[406297018,1771699845472,-151.0,0.00036,31]
[406297019,1771699845486,-151.0,0.00036,31]
[406297020,1771699845500,-151.0,0.00036,31]
[406297021,1771699845511,-151.0,0.00036,31]
[406297022,1771699845523,-151.0,0.00036,31]
[406297023,1771699845536,-151.0,0.00036,31]
[406297024,1771699845548,-151.0,0.00036,31]
[406297025,1771699845561,-151.0,0.00036,31]
[406297026,1771699845574,-151.0,0.00036,31]
[406297027,1771699845585,-153.178362,0.00036,31]
[406297028,1771699845595,-151.4934,0.00036,31]
[406297029,1771699845606,-151.0,0.00036,31]
[406297030,1771699845618,-151.0,0.00036,31]
[406297031,1771699845628,-151.0,0.00036,31]
[406297032,1771699845639,-151.0,0.00036,31]
[406297033,1771699845652,-151.0,0.00036,31]
[406297034,1771699845664,-151.0,0.00036,31]
[406297035,1771699845675,-151.0,0.00036,14]
[406297036,1771699845686,-151.0,0.00036,31]
[406297037,1771699845698,-1000.0,0.00036,2]
[406297038,1771699845709,-1000.0,0.00036,2]
[406297039,1771699845720,-1000.0,0.00036,2]
[406297040,1771699845731,-1000.0,0.00036,2]
[406297041,1771699845744,-1000.0,0.00036,2]
[406297042,1771699845756,-1000.0,0.00036,2]
[406297043,1771699845768,-1000.0,0.00036,2]
[406297044,1771699845781,-1000.0,0.00036,2]
[406297045,1771699845791,-499.114299,0.00036,2]
[406297046,1771699845804,-151.0,0.00036,31]
[406297047,1771699845815,-232.67043,0.00036,31]
[406297048,1771699845828,-232.67043,0.00036,31]
[406297049,1771699845839,-232.67043,0.00036,31]
[406297050,1771699845850,-232.67043,0.00036,31]
[406297051,1771699845862,-370.744883,0.00036,31]
[406297054,1771699845873,-370.744883,0.00036,31]
[406297056,1771699845885,-370.744883,0.00036,31]
[406297058,1771699845896,-151.0,0.00036,31]
[406297060,1771699845907,-370.744883,0.00036,31]
[406297062,1771699845918,-151.0,0.00036,31]
[406297065,1771699845929,-151.0,0.00036,31]
[406297067,1771699845940,-496.794936,0.00036,31]
[406297069,1771699845951,-496.794936,0.00036,31]
[406297071,1771699845963,-496.794936,0.00036,31]
[406297073,1771699845975,-496.794936,0.00036,31]
[406297075,1771699845986,-151.0,0.00036,31]
[406297076,1771699845997,-878.677105,0.00036,31]
[406297077,1771699846008,-878.677105,0.00036,31]
[406297078,1771699846019,-878.677105,0.00036,31]
[406297079,1771699846031,-878.677105,0.00036,31]
[406297080,1771699846042,-151.0,0.00036,28]
[406297081,1771699846053,-151.0,0.00036,28]
[406297082,1771699846065,-151.0,0.00036,31]
[406297083,1771699846076,-151.0,0.00036,31]
[406297084,1771699846087,-426.745295,0.00036,31]
[406297085,1771699846099,-426.745295,0.00036,31]
[406297086,1771699846110,-426.745295,0.00036,31]
[406297087,1771699846121,-426.745295,0.00036,31]
[406297088,1771699846132,-680.208125,0.00036,31]
[406297089,1771699846144,-680.208125,0.00036,31]
[406297090,1771699846156,-325.537551,0.00036,7]
[406297091,1771699846167,-680.208125,0.00036,31]
[406297092,1771699846179,-325.537551,0.00036,7]
[406297093,1771699846190,-680.208125,0.00036,31]
[406297094,1771699846201,-325.537551,0.00036,7]
[406297095,1771699846212,-325.537551,0.00036,7]
[406297096,1771699846222,-151.0,0.00036,31]
[406297097,1771699846234,-500.0,0.00036113,120]
[406297098,1771699846245,-4350.88,0.00036293,2]
[406297099,1771699846256,-2000.0,0.000364,2]
[406297100,1771699846267,-7340.74,0.000364,14]
[406297101,1771699846283,-222.15,0.00036583,30]
[406297102,1771699846294,-150.0,0.0003675,7]
[406297103,1771699846305,-191.0,0.0003675,7]
[406297104,1771699846316,-1039.0,0.00036799,2]
[406297105,1771699846327,-3493.0,0.00036799,2]
[406297106,1771699846338,-618.0,0.00036799,2]
[406297107,1771699846350,-1338.0,0.00036799,2]
[406297108,1771699846361,-1209.0,0.00036799,2]
[406297109,1771699846373,-1276.0,0.00036799,2]
[406297110,1771699846385,-5976.0,0.00036799,2]
[406297111,1771699846397,-2453.0,0.00036799,2]
[406297112,1771699846410,-413.0,0.00036799,2]
[406297113,1771699846423,-1616.85620482,0.000368,2]
[406297114,1771699846436,-1962.78497613,0.000368,2]
[406297115,1771699846449,-14183.43113301,0.0003691,2]
[406297116,1771699846461,-166.33321006,0.00037,2]
[406297117,1771699846474,-1000.0,0.00037,120]
[406297118,1771699846484,-150.0,0.00037008,2]
[406297119,1771699846494,-510.0,0.00037333,21]
[406297120,1771699846504,-167.45,0.00037398,60]
[406297121,1771699846515,-4350.05209308,0.0003759,2]
[406297122,1771699846524,-1660.14,0.00037623,49]
[406297123,1771699846534,-551.0,0.00037632,30]
[406297124,1771699846544,-329.0,0.00037632,30]
[406297125,1771699846555,-2909.07,0.00037816,2]
[406297126,1771699846565,-202.94885988,0.0003788,2]
[406297127,1771699846574,-154.64,0.000382,14]
[406297128,1771699846584,-20032.6819788,0.000382,2]
[406297129,1771699846593,-151.0,0.00038356,120]
[406297130,1771699846800,-151.0,0.00038356,120]
[406297131,1771699846823,-151.0,0.00038356,120]
[406297132,1771699846835,-204.062059,0.00038356,120]
[406297133,1771699846844,-151.0,0.00038356,120]
[406297134,1771699846853,-151.0,0.00038356,120]
[406297135,1771699846863,-151.0,0.00038356,120]
[406297136,1771699846871,-7340.74,0.000384,14]
[406297137,1771699846881,-500.0,0.00038486,120]
[406297138,1771699846889,-1789.43922358,0.000387,2]
[406297139,1771699846899,-7426.01405581,0.00038834,2]
[406297140,1771699846909,-30884.31238214,0.00039,2]
[406297141,1771699846919,-1000.0,0.00039,120]
[406297142,1771699846928,-613.72084174,0.00039258,2]
[406297143,1771699846937,-207117.8054798,0.000397,21]
[406297144,1771699846949,-46040.72484715,0.000397,2]
[406297145,1771699846958,-232.71017713,0.00039732,2]
[406297146,1771699846967,-3493.0,0.00039799,2]
[406297147,1771699846976,-618.0,0.00039799,2]
[406297148,1771699846985,-1209.0,0.00039799,2]
[406297149,1771699846994,-1276.0,0.00039799,2]
[406297150,1771699847003,-5976.0,0.00039799,2]
[406297151,1771699847012,-2453.0,0.00039799,2]
[406297152,1771699847021,-413.0,0.00039799,2]
[406297153,1771699847032,-341.09079642,0.00039865,2]
[406297154,1771699847042,-2660.52258747,0.00039999,2]
[406297155,1771699847051,-391.54456763,0.0004,2]
[406297156,1771699847060,-1564.57375912,0.0004,2]
[406297157,1771699847070,-4118.85894901,0.0004,2]
[406297158,1771699847079,-219.33301612,0.0004,2]
[406297159,1771699847087,-601.07258317,0.0004,2]
[406297160,1771699847096,-315.51881875,0.0004,2]
[406297161,1771699847105,-162.01477092,0.0004,2]
[406297162,1771699847114,-10713.20885272,0.0004,2]
[406297163,1771699847123,-153.0,0.0004,120]
[406297164,1771699847133,-152.82,0.0004,2]
[406297165,1771699847142,-152.82,0.0004,2]
[406297166,1771699847151,-152.82,0.0004,2]
[406297167,1771699847160,-152.82,0.0004,2]
[406297168,1771699847169,-152.82,0.0004,2]
[406297169,1771699847178,-152.82,0.0004,2]
[406297170,1771699847187,-152.82,0.0004,2]
[406297171,1771699847196,-152.82,0.0004,2]
[406297172,1771699847206,-152.82,0.0004,2]
[406297173,1771699847215,-152.82,0.0004,2]
[406297174,1771699847224,-152.82,0.0004,2]
[406297175,1771699847234,-152.82,0.0004,2]
[406297176,1771699847244,-152.82,0.0004,2]
[406297177,1771699847253,-152.82,0.0004,2]
[406297178,1771699847262,-152.82,0.0004,2]
[406297179,1771699847277,-152.82,0.0004,2]
[406297180,1771699847286,-152.82,0.0004,2]
[406297181,1771699847295,-152.82,0.0004,2]
[406297182,1771699847304,-152.82,0.0004,2]
[406297183,1771699847314,-152.82,0.0004,2]
[406297184,1771699847323,-152.82,0.0004,2]
[406297185,1771699847332,-152.82,0.0004,2]
[406297186,1771699847342,-152.82,0.0004,2]
[406297187,1771699847351,-152.82,0.0004,2]
[406297188,1771699847360,-152.82,0.0004,2]
[406297189,1771699847370,-152.82,0.0004,2]
[406297190,1771699847379,-152.82,0.0004,2]
[406297191,1771699847389,-152.82,0.0004,2]
[406297192,1771699847398,-152.82,0.0004,2]
[406297193,1771699847407,-152.82,0.0004,2]
[406297194,1771699847416,-152.82,0.0004,2]
[406297195,1771699847425,-152.82,0.0004,2]
[406297196,1771699847434,-152.82,0.0004,2]
[406297197,1771699847443,-152.82,0.0004,2]
[406297198,1771699847451,-152.82,0.0004,2]
[406297199,1771699847461,-152.82,0.0004,2]
[406297200,1771699847470,-152.82,0.0004,2]
[406297201,1771699847479,-152.82,0.0004,2]
[406297202,1771699847488,-152.82,0.0004,2]
[406297203,1771699847497,-152.82,0.0004,2]
[406297204,1771699847506,-152.82,0.0004,2]
[406297205,1771699847515,-152.82,0.0004,2]
[406297206,1771699847524,-152.82,0.0004,2]
[406297207,1771699847533,-152.82,0.0004,2]
[406297208,1771699847543,-152.82,0.0004,2]
[406297209,1771699847551,-152.82,0.0004,2]
[406297210,1771699847560,-152.82,0.0004,2]
[406297211,1771699847570,-152.82,0.0004,2]
[406297212,1771699847578,-152.82,0.0004,2]
[406297213,1771699847587,-152.82,0.0004,2]
[406297214,1771699847596,-152.82,0.0004,2]
[406297215,1771699847605,-2000.0,0.000401,2]
[406297216,1771699847614,-7340.74,0.000401,14]
[406297217,1771699847622,-6562.6947821,0.00040113,5]
[406297218,1771699847631,-500.0,0.00040375,120]
[406297219,1771699847640,-151.0,0.00040568,14]
[406297220,1771699847650,-300.0,0.00040571,2]
[406297221,1771699847659,-300.0,0.00040571,2]
[406297222,1771699847668,-300.0,0.00040571,2]
[406297223,1771699847677,-300.0,0.00040571,2]
[406297224,1771699847686,-300.0,0.00040571,2]
[406297225,1771699847695,-300.0,0.00040571,2]
[406297226,1771699847704,-1081.79077738,0.00040571,2]
[406297227,1771699847713,-300.0,0.00040571,2]
[406297228,1771699847723,-300.0,0.00040571,2]
[406297229,1771699847732,-300.0,0.00040571,2]
[406297230,1771699847741,-300.0,0.00040571,2]
[406297231,1771699847750,-300.0,0.00040571,2]
[406297232,1771699847759,-855.46737255,0.00040571,2]
[406297233,1771699847767,-884.25866852,0.00040571,2]
[406297234,1771699847777,-1562.58795981,0.00040571,2]
[406297235,1771699847786,-300.0,0.00040571,2]
[406297236,1771699847795,-300.0,0.00040571,2]
[406297237,1771699847804,-300.0,0.00040571,2]
[406297238,1771699847813,-307.19972653,0.00040571,2]
[406297239,1771699847822,-300.0,0.00040571,2]
[406297240,1771699847831,-300.0,0.00040571,2]
[406297241,1771699847840,-458.66921193,0.00040571,2]
[406297242,1771699847849,-300.0,0.00040571,2]
[406297243,1771699847858,-300.0,0.00040571,2]
[406297244,1771699847867,-300.0,0.00040571,2]
[406297245,1771699847877,-300.0,0.00040571,2]
[406297246,1771699847886,-371.30350818,0.00040571,2]
[406297247,1771699847895,-300.0,0.00040571,2]
[406297248,1771699847905,-300.0,0.00040571,2]
[406297249,1771699847914,-300.0,0.00040571,2]
[406297250,1771699847923,-300.0,0.00040571,2]
[406297251,1771699847931,-300.0,0.00040571,2]
[406297252,1771699847941,-300.0,0.00040571,2]
[406297253,1771699847950,-518.44464902,0.00040571,2]
[406297254,1771699847959,-306.15563292,0.00040571,2]
[406297255,1771699847967,-300.0,0.00040571,2]
[406297256,1771699847977,-300.0,0.00040571,2]
[406297257,1771699847986,-300.0,0.00040571,2]
[406297258,1771699847995,-300.0,0.00040571,2]
[406297259,1771699848004,-300.0,0.00040571,2]
[406297260,1771699848013,-300.0,0.00040571,2]
[406297261,1771699848022,-300.0,0.00040571,2]
[406297262,1771699848032,-300.0,0.00040571,2]
[406297263,1771699848041,-300.0,0.00040571,2]
[406297264,1771699848050,-1081.79077738,0.00040571,2]
[406297265,1771699848059,-300.0,0.00040571,2]
[406297266,1771699848068,-300.0,0.00040571,2]
[406297267,1771699848078,-300.0,0.00040571,2]
[406297268,1771699848087,-300.0,0.00040571,2]
[406297269,1771699848095,-300.0,0.00040571,2]
[406297270,1771699848104,-855.46737255,0.00040571,2]
[406297271,1771699848113,-884.25866852,0.00040571,2]
[406297272,1771699848122,-1562.58795981,0.00040571,2]
[406297273,1771699848131,-300.0,0.00040571,2]
[406297274,1771699848140,-300.0,0.00040571,2]
[406297275,1771699848149,-300.0,0.00040571,2]
[406297276,1771699848158,-307.19972653,0.00040571,2]
[406297277,1771699848167,-300.0,0.00040571,2]
[406297278,1771699848176,-300.0,0.00040571,2]
[406297279,1771699848185,-458.66921193,0.00040571,2]
[406297280,1771699848193,-300.0,0.00040571,2]
[406297281,1771699848202,-300.0,0.00040571,2]
[406297282,1771699848211,-300.0,0.00040571,2]
[406297283,1771699848219,-300.0,0.00040571,2]
[406297284,1771699848228,-371.30350818,0.00040571,2]
[406297285,1771699848237,-300.0,0.00040571,2]
[406297286,1771699848246,-300.0,0.00040571,2]
[406297287,1771699848255,-300.0,0.00040571,2]
[406297288,1771699848264,-300.0,0.00040571,2]
[406297289,1771699848277,-300.0,0.00040571,2]
[406297290,1771699848286,-300.0,0.00040571,2]
[406297291,1771699848295,-518.44464902,0.00040571,2]
[406297292,1771699848304,-306.15563292,0.00040571,2]
[406297293,1771699848313,-300.0,0.00040571,2]
[406297294,1771699848323,-300.0,0.00040571,2]
[406297295,1771699848332,-300.0,0.00040571,2]
[406297296,1771699848341,-300.0,0.00040571,2]
[406297297,1771699848350,-300.0,0.00040571,2]
[406297298,1771699848359,-300.0,0.00040571,2]
[406297299,1771699848368,-300.0,0.00040571,2]
[406297300,1771699848378,-300.0,0.00040571,2]
[406297301,1771699848387,-300.0,0.00040571,2]
[406297302,1771699848396,-1081.79077738,0.00040571,2]
[406297303,1771699848405,-300.0,0.00040571,2]
[406297304,1771699848414,-300.0,0.00040571,2]
[406297305,1771699848423,-300.0,0.00040571,2]
[406297306,1771699848433,-300.0,0.00040571,2]
[406297307,1771699848442,-300.0,0.00040571,2]
[406297308,1771699848452,-855.46737255,0.00040571,2]
[406297309,1771699848461,-884.25866852,0.00040571,2]
[406297310,1771699848470,-1562.58795981,0.00040571,2]
[406297311,1771699848480,-300.0,0.00040571,2]
[406297312,1771699848490,-300.0,0.00040571,2]
[406297313,1771699848498,-300.0,0.00040571,2]
[406297314,1771699848507,-307.19972653,0.00040571,2]
[406297315,1771699848516,-300.0,0.00040571,2]
[406297316,1771699848525,-300.0,0.00040571,2]
[406297317,1771699848535,-458.66921193,0.00040571,2]
[406297318,1771699848543,-300.0,0.00040571,2]
[406297319,1771699848552,-300.0,0.00040571,2]
[406297320,1771699848561,-300.0,0.00040571,2]
[406297321,1771699848571,-300.0,0.00040571,2]
[406297322,1771699848580,-371.30350818,0.00040571,2]
[406297323,1771699848589,-300.0,0.00040571,2]
[406297324,1771699848598,-300.0,0.00040571,2]